lending/lending_fUSD_20240731
["ID","MTS","AMOUNT","RATE_DAILY","PERIOD"]
[333740092,1722433645522,-150.0,0.00042364,30]
[333740093,1722433645561,-150.0,0.00042429,30]
[333740094,1722433645603,-150.0,0.00042493,30]
[333740095,1722433645641,-150.0,0.00042557,30]
[333740096,1722433645680,-150.0,0.00042621,30]
[333740097,1722433645721,-150.0,0.00042686,30]
[333740098,1722433645763,-150.0,0.0004275,30]
[333740099,1722433645801,-150.0,0.00042814,30]
[333740100,1722433645842,-150.0,0.00042879,30]
[333740101,1722433645881,-150.0,0.00042943,30]
[333740102,1722433645922,-150.0,0.00043007,30]
[333740103,1722433645965,-150.0,0.00043071,30]
[333740104,1722433646006,-150.0,0.00043136,30]
[333740105,1722433646045,-150.0,0.000432,30]
[333740106,1722433646085,-150.0,0.00043264,30]
[333740107,1722433646126,-150.0,0.00043329,30]
[333740108,1722433646171,-1000.0,0.0004475,30]
[333740109,1722433646214,-286.0,0.00045,30]
[333740110,1722433646254,-894085.93099521,0.00045222,30]
[333740111,1722433646294,-150.0,0.00045222,30]
[333740112,1722433646333,-2000000.0,0.0004525,120]
[333740113,1722433646374,-193.66666667,0.00045288,120]
[333740114,1722433646414,-3836.78,0.00045328,30]
[333740115,1722433646454,-3836.78,0.00045328,30]
[333740116,1722433646495,-500.0,0.00045433,120]
[333740117,1722433646536,-1572.44803649,0.00045479,30]
[333740118,1722433646576,-2512.79566358,0.00045479,120]
[333740119,1722433646615,-10978.86909712,0.000455,30]
[333740120,1722433646657,-50900.0,0.000455,31]
[333740121,1722433646699,-266.88621654,0.000456,120]
[333740122,1722433646741,-3836.78,0.00045601,30]
[333740123,1722433646781,-3836.78,0.00045601,30]
[333740124,1722433646823,-150.0,0.00045697,120]
[333740125,1722433646865,-1000.0,0.000458,30]
[333740126,1722433646907,-20000.0,0.000458,30]
[333740127,1722433646949,-3836.78,0.00045874,30]
[333740128,1722433646991,-3836.78,0.00045874,30]
[333740129,1722433647035,-722.684944,0.0004588,30]
[333740130,1722433647075,-151.0,0.00045973,120]
[333740131,1722433647116,-1000.0,0.00045999,120]
[333740132,1722433647162,-50000.0,0.00046,36]
[333740133,1722433647208,-50000.0,0.00046,46]
[333740134,1722433647249,-1000.0,0.00046,30]
[333740135,1722433647560,-2961.7093698,0.00046,30]
[333740136,1722433647609,-50000.0,0.00046,32]
[333740137,1722433647650,-4100.663126,0.00046,30]
[333740138,1722433647689,-560.588449,0.00046,30]
[333740139,1722433647729,-25493.6520875,0.00046,30]
[333740140,1722433647767,-251451.12582959,0.00046,30]
[333740141,1722433647806,-169.6,0.00046,96]
[333740142,1722433647846,-1000000.0,0.00046,120]
[333740143,1722433647885,-577.81154678,0.00046,120]
[333740144,1722433647923,-2000.0,0.00046,120]
[333740145,1722433647962,-500.0,0.00046,120]
[333740146,1722433648001,-1000.0,0.00046,120]
[333740147,1722433648039,-956.04318295,0.00046,120]
[333740148,1722433648076,-452.21940063,0.00046,30]
[333740149,1722433648115,-1897.91857673,0.00046,120]
[333740150,1722433648154,-220.50600257,0.0004602,120]
[333740151,1722433648192,-500.0,0.00046114,120]
[333740152,1722433648232,-193.66666667,0.00046137,120]
[333740153,1722433648271,-612.72250448,0.000465,120]
[333740154,1722433648311,-860.910993,0.000465,30]
[333740155,1722433648353,-645.683244,0.000465,30]
[333740156,1722433648394,-2068.16328485,0.000465,99]
[333740157,1722433648434,-604.220395,0.000465,30]
[333740158,1722433648474,-150.0,0.0004661,120]
[333740159,1722433648515,-150.0,0.00046779,120]
[333740160,1722433648554,-15000.0,0.0004678,30]
[333740161,1722433648595,-500.0,0.00046806,120]
[333740162,1722433648635,-10795.45227742,0.0004685,90]
[333740163,1722433648674,-1060.35998387,0.0004685,90]
[333740164,1722433648717,-150.0,0.0004691,120]
[333740165,1722433648757,-193.66666667,0.00046986,120]
[333740166,1722433648801,-50000.0,0.00047,47]
[333740167,1722433648844,-50000.0,0.00047,37]
[333740168,1722433648884,-50000.0,0.00047,33]
[333740169,1722433648925,-500.0,0.00047,30]
[333740170,1722433648967,-58848.60360893,0.00047,60]
[333740171,1722433649011,-1000000.0,0.00047,120]
[333740172,1722433649050,-2000.13316733,0.00047,120]
[333740173,1722433649090,-294142.10608422,0.00047,120]
[333740175,1722433668040,-4000.0,0.00027397,30]
[333740176,1722433669404,-394.15119324,0.00036085,30]
[333740177,1722433669441,-394.15119324,0.00036236,30]
[333740178,1722433669478,-394.15119324,0.00036443,30]
[333740179,1722433669516,-394.15119324,0.00036753,30]
[333740180,1722433669555,-394.15119324,0.00037203,30]
[333740181,1722433669595,-394.15119324,0.00037504,30]
[333740182,1722433669633,-394.15119324,0.00037542,30]
[333740183,1722433669670,-394.15119324,0.00037833,30]
[333740184,1722433669709,-394.15119324,0.00038114,30]
[333740185,1722433669749,-394.15119324,0.00038566,30]
[333740186,1722433669786,-394.15119324,0.00038827,30]
[333740187,1722433669823,-394.15119324,0.00038906,30]
[333740188,1722433669864,-394.15119324,0.00039334,30]
[333740189,1722433669906,-394.15119324,0.00039474,30]
[333740190,1722433669945,-394.15119324,0.00039833,30]
[333740191,1722433669989,-394.15119324,0.0004008,30]
[333740192,1722433670029,-600.0,0.00040113,30]
[333740193,1722433670070,-500.0,0.00040311,30]
[333740194,1722433670108,-394.15119324,0.00040453,30]
[333740195,1722433670146,-500.0,0.00040633,30]
[333740196,1722433670183,-600.0,0.00040671,30]
[333740197,1722433670222,-394.15119324,0.00040758,30]
[333740198,1722433670259,-394.15119324,0.00040837,30]
[333740199,1722433670296,-500.0,0.00040883,30]
[333740200,1722433670334,-150.0,0.00041162,30]
[333740201,1722433670371,-1400.0,0.00041164,30]
[333740202,1722433670407,-500.0,0.0004125,30]
[333740203,1722433670443,-394.15119324,0.00041279,30]
[333740204,1722433670479,-150.0,0.00041294,30]
[333740205,1722433670514,-150.0,0.00041426,30]
[333740206,1722433670550,-1400.0,0.00041438,30]
[333740207,1722433670587,-394.15119324,0.00041485,30]
[333740208,1722433670623,-800.0,0.00041535,30]
[333740209,1722433670660,-500.0,0.00041542,30]
[333740210,1722433670697,-150.0,0.00041559,30]
[333740211,1722433670734,-150.0,0.00041691,30]
[333740212,1722433670769,-700.0,0.00041712,30]
[333740213,1722433670804,-500.0,0.00041712,30]
[333740214,1722433670844,-600.0,0.00041746,30]
[333740215,1722433670879,-500.0,0.00041749,30]
[333740216,1722433670917,-150.0,0.00041824,30]
[333740217,1722433670954,-394.15119324,0.00041848,30]
[333740218,1722433670996,-500.0,0.00041918,30]
[333740219,1722433671031,-150.0,0.00041956,30]
[333740220,1722433671071,-1400.0,0.00041986,30]
[333740221,1722433671113,-394.15119324,0.00042022,30]
[333740222,1722433671152,-150.0,0.00042088,30]
[333740223,1722433671192,-800.0,0.00042211,30]
[333740224,1722433671231,-150.0,0.00042221,30]
[333740225,1722433671271,-600.0,0.0004223,30]
[333740226,1722433671308,-700.0,0.0004226,30]
[333740227,1722433671351,-500.0,0.0004226,30]
[333740228,1722433671391,-600.0,0.00042263,30]
[333740229,1722433671429,-500.0,0.0004229,30]
[333740230,1722433671467,-506.75397883,0.00042312,30]
[333740231,1722433671510,-150.0,0.00042353,30]
[333740232,1722433671548,-500.0,0.00042383,30]
[333740233,1722433671585,-394.15119324,0.00042446,30]
[333740234,1722433671625,-500.0,0.00042478,30]
[333740235,1722433671663,-150.0,0.00042485,30]
[333740236,1722433671699,-394.15119324,0.00042513,30]
[333740237,1722433671736,-1400.0,0.00042534,30]
[333740238,1722433671774,-600.0,0.00042611,30]
[333740239,1722433671814,-150.0,0.00042618,30]
[333740240,1722433671855,-500.0,0.00042631,30]
[333740241,1722433671902,-394.15119324,0.0004274,30]
[333740242,1722433671948,-150.0,0.0004275,30]
[333740243,1722433671997,-600.0,0.00042772,30]
[333740244,1722433672040,-700.0,0.00042808,30]
[333740245,1722433672082,-500.0,0.00042808,30]
[333740246,1722433672127,-500.0,0.00042862,30]
[333740247,1722433672167,-150.0,0.00042882,30]
[333740248,1722433672207,-500.0,0.00042886,30]
[333740249,1722433672244,-600.0,0.00042948,30]
[333740250,1722433672283,-500.0,0.0004301,30]
[333740251,1722433672321,-150.0,0.00043015,30]
[333740252,1722433672362,-394.15119324,0.00043041,30]
[333740253,1722433672399,-1400.0,0.00043082,30]
[333740254,1722433672435,-150.0,0.00043147,30]
[333740255,1722433672473,-150.0,0.00043279,30]
[333740256,1722433672509,-700.0,0.00043356,30]
[333740257,1722433672547,-500.0,0.00043356,30]
[333740258,1722433672585,-150.0,0.00043393,30]
[333740259,1722433672863,-394.15119324,0.00043396,30]
[333740260,1722433672898,-150.0,0.00043412,30]
[333740261,1722433672933,-681.82923406,0.00043432,30]
[333740262,1722433672969,-150.0,0.00043457,30]
[333740263,1722433673005,-150.0,0.00043521,30]
[333740264,1722433673042,-150.0,0.00043544,30]
[333740265,1722433673078,-150.0,0.00043586,30]
[333740266,1722433673115,-394.15119324,0.00043601,30]
[333740267,1722433673152,-1400.0,0.0004363,30]
[333740268,1722433673188,-150.0,0.0004365,30]
[333740269,1722433673225,-150.0,0.00043676,30]
[333740270,1722433673260,-184.8687293,0.0004371,30]
[333740271,1722433673295,-150.0,0.00043714,30]
[333740272,1722433673330,-150.0,0.00043779,30]
[333740273,1722433673368,-500.48389798,0.00043783,30]
[333740274,1722433673403,-500.0,0.00043835,120]
[333740275,1722433673438,-500.0,0.00043835,120]
[333740276,1722433673474,-500.0,0.00043835,120]
[333740277,1722433673512,-500.0,0.00043835,120]
[333740278,1722433673551,-500.0,0.00043835,120]
[333740279,1722433673595,-500.0,0.00043835,120]
[333740280,1722433673632,-500.0,0.00043835,120]
[333740281,1722433673669,-500.0,0.00043835,120]
[333740282,1722433673706,-500.0,0.00043835,120]
[333740283,1722433673742,-500.0,0.00043835,120]
[333740284,1722433673778,-500.0,0.00043835,120]
[333740285,1722433673814,-150.0,0.00043843,30]
[333740286,1722433673850,-700.0,0.00043904,30]
[333740287,1722433673885,-500.0,0.00043904,30]
[333740288,1722433673921,-150.0,0.00043907,30]
[333740289,1722433673957,-800.0,0.00043913,30]
[333740290,1722433673994,-150.0,0.00043971,30]
[333740291,1722433674031,-394.15119324,0.00043993,30]
[333740292,1722433674069,-150.0,0.00044036,30]
[333740293,1722433674106,-1171.9282266,0.00044068,30]
[333740294,1722433674142,-150.0,0.000441,30]
[333740295,1722433674181,-600.0,0.00044122,30]
[333740296,1722433674220,-784.97885697,0.00044123,30]
[333740297,1722433674260,-150.0,0.00044164,30]
[333740298,1722433674297,-1400.0,0.00044178,30]
[333740299,1722433674337,-150.0,0.00044229,30]
[333740300,1722433674374,-394.15119324,0.00044246,30]
[333740301,1722433674411,-150.0,0.00044293,30]
[333740302,1722433674447,-650.88232161,0.00044332,30]
[333740303,1722433674485,-150.0,0.00044357,30]
[333740304,1722433674521,-150.0,0.00044421,30]
[333740305,1722433674558,-394.15119324,0.00044434,30]
[333740306,1722433674596,-983.61411337,0.00044435,30]
[333740307,1722433674630,-700.0,0.00044452,30]
[333740308,1722433674667,-500.0,0.00044452,30]
[333740309,1722433674703,-150.0,0.00044486,30]
[333740310,1722433674739,-150.0,0.0004455,30]
[333740311,1722433674774,-150.0,0.00044614,30]
[333740312,1722433674811,-150.0,0.00044679,30]
[333740313,1722433674848,-1400.0,0.00044726,30]
[333740314,1722433674886,-150.0,0.00044743,30]
[333740315,1722433674926,-150.0,0.00044807,30]
[333740316,1722433674967,-394.15119329,0.00044833,30]
[333740317,1722433675006,-150.0,0.00044871,30]
[333740318,1722433675055,-150.0,0.00044936,30]
[333740319,1722433675095,-592.19173153,0.00044999,30]
[333740320,1722433675132,-216.23157775,0.00045,30]
[333740321,1722433675170,-392.98007521,0.00045,30]
[333740322,1722433675208,-217.59260437,0.00045,30]
[333740323,1722433675244,-1400.0,0.00045274,30]
[333740324,1722433675282,-1400.0,0.00045822,30]
[333740325,1722433675322,-150.0,0.00046952,120]
[333740326,1722433675360,-705857.89391578,0.00047,120]
[333740327,1722433675396,-1167.74,0.00047,120]
[333740328,1722433675433,-71718.56,0.00047,35]
[333740329,1722433675472,-3000.0,0.00047,35]
[333740330,1722433675510,-3000.0,0.00047,35]
[333740331,1722433675548,-3000.0,0.00047,35]
[333740332,1722433675584,-3000.0,0.00047,35]
[333740333,1722433675623,-3000.0,0.00047,35]
[333740334,1722433675662,-3000.0,0.00047,35]
[333740335,1722433675701,-150.0,0.00047162,120]
[333740336,1722433675738,-150.0,0.00047204,120]
[333740337,1722433675775,-793.0,0.0004725,30]
[333740338,1722433675815,-151.0,0.00047425,120]
[333740339,1722433675853,-15000.0,0.0004744,30]
[333740340,1722433675891,-1049102.0,0.00047444,30]
[333740341,1722433675929,-1000000.0,0.000475,120]
[333740342,1722433675966,-500.0,0.00047508,120]
[333740343,1722433676004,-243631.67072841,0.000478,30]
[333740344,1722433676042,-193.66666667,0.00047836,120]
[333740345,1722433676080,-5244.06062817,0.000479,30]
[333740346,1722433676125,-4309.0802422,0.000479,120]
[333740347,1722433676163,-1000.0,0.00047999,120]
[333740348,1722433676202,-50000.0,0.00048,48]
[333740349,1722433676241,-50000.0,0.00048,38]
[333740350,1722433676277,-50000.0,0.00048,34]
[333740351,1722433676313,-500.0,0.00048,30]
[333740352,1722433676349,-5000.00000001,0.00048,30]
[333740353,1722433676385,-7000.0,0.00048,30]
[333740354,1722433676423,-3966.07733332,0.00048,30]
[333740355,1722433676461,-1000000.0,0.00048,120]
[333740356,1722433676498,-1000000.0,0.00048,120]
[333740357,1722433676535,-2000.0,0.00048,120]
[333740358,1722433676572,-1950.0,0.00048,120]
[333740359,1722433676609,-900.0,0.00048,120]
[333740360,1722433676649,-639423.92576089,0.00048,120]
[333740361,1722433684897,-175.22252758,0.0003,30]
[333740362,1722433685880,-1100.0,0.0004152,30]
[333740363,1722433685920,-150.0,0.00042478,30]
[333740364,1722433685962,-150.0,0.00043809,30]
[333740365,1722433686001,-150.0,0.00043941,30]
[333740366,1722433686041,-150.0,0.00044074,30]
[333740367,1722433686082,-150.0,0.00044206,30]
[333740368,1722433686121,-150.0,0.00044338,30]
[333740369,1722433686157,-150.0,0.00044471,30]
[333740370,1722433686195,-150.0,0.00044603,30]
[333740371,1722433686232,-150.0,0.00044735,30]
[333740372,1722433686270,-150.0,0.00044868,30]
[333740373,1722433686308,-154.66781696,0.00045,30]
[333740374,1722433686347,-152.64615381,0.0004637,30]
[333740375,1722433686396,-360576.07423911,0.00048,120]
[333740376,1722433686768,-1000000.0,0.00048,120]
[333740377,1722433686808,-1000000.0,0.00048,120]
[333740378,1722433686849,-1000000.0,0.00048,120]
[333740379,1722433686892,-1000000.0,0.00048,120]
[333740380,1722433686934,-1000000.0,0.00048,120]
[333740381,1722433686975,-636341.38926254,0.00048,120]
[333740383,1722433693307,-151.0,0.0003,120]
[333740384,1722433694461,-1900.0,0.0004152,30]
[333740385,1722433694500,-1900.0,0.00041794,30]
[333740386,1722433694541,-1100.0,0.00042068,30]
[333740387,1722433694579,-1900.0,0.00042068,30]
[333740388,1722433694618,-1100.0,0.00042616,30]
[333740389,1722433694657,-1900.0,0.00042616,30]
[333740390,1722433694695,-1100.0,0.00043164,30]
[333740391,1722433694732,-1900.0,0.00043164,30]
[333740392,1722433694772,-1100.0,0.00043712,30]
[333740393,1722433694814,-1100.0,0.0004426,30]
[333740394,1722433694856,-217.13375202,0.0004637,30]
[333740395,1722433694894,-1411.65796666,0.0004637,30]
[333740396,1722433694935,-363658.61073746,0.00048,120]
[333740397,1722433694974,-1000000.0,0.00048,120]
[333740398,1722433695013,-1000000.0,0.00048,120]
[333740399,1722433695055,-286.35,0.00048,120]
[333740400,1722433695097,-1000.0,0.00048,60]
[333740401,1722433695136,-1897.91857672,0.00048,120]
[333740402,1722433695177,-2108.67,0.00048,30]
[333740403,1722433695214,-301.523,0.00048,30]
[333740404,1722433695252,-500.0,0.00048221,120]
[333740405,1722433695290,-10000.0,0.0004844,30]
[333740406,1722433695330,-1000000.0,0.000485,120]
[333740407,1722433695371,-109368.42,0.00048528,120]
[333740408,1722433695409,-109368.42,0.00048528,120]
[333740409,1722433695449,-109368.42,0.00048528,120]
[333740410,1722433695490,-109368.42,0.00048528,120]
[333740411,1722433695529,-109368.42,0.00048528,120]
[333740412,1722433695568,-600.869,0.00048528,120]
[333740413,1722433695606,-212.021,0.00048528,120]
[333740414,1722433695650,-600.87,0.00048528,120]
[333740415,1722433695689,-212.021,0.00048528,120]
[333740416,1722433695729,-600.87,0.00048528,120]
[333740417,1722433695767,-600.87,0.00048528,120]
[333740418,1722433695806,-600.869,0.00048528,120]
[333740419,1722433695847,-8856.0,0.000486,120]
[333740420,1722433695887,-193.66666667,0.00048685,120]
[333740421,1722433695929,-551.6312327,0.000487,120]
[333740422,1722433695971,-1014.2,0.0004872,31]
[333740423,1722433696010,-1754.63,0.00048767,30]
[333740424,1722433696049,-1754.63,0.00048767,30]
[333740425,1722433696088,-1754.63,0.00048767,30]
[333740426,1722433696127,-1754.63,0.00048767,30]
[333740427,1722433696166,-1754.63,0.00048767,30]
[333740428,1722433696219,-1754.63,0.00048767,30]
[333740429,1722433696258,-1754.63,0.00048767,30]
[333740430,1722433696295,-1754.63,0.00048767,30]
[333740431,1722433696332,-1754.63,0.00048767,30]
[333740432,1722433696370,-1754.63,0.00048767,30]
[333740433,1722433696408,-1754.63,0.00048767,30]
[333740434,1722433696445,-1754.63,0.00048767,30]
[333740435,1722433696485,-1754.63,0.00048767,30]
[333740436,1722433696522,-1754.63,0.00048767,30]
[333740437,1722433696560,-1754.63,0.00048767,30]
[333740438,1722433696597,-1754.63,0.00048767,30]
[333740439,1722433696634,-1754.63,0.00048767,30]
[333740440,1722433696674,-1754.63,0.00048767,30]
[333740441,1722433696714,-1754.63,0.00048767,30]
[333740442,1722433696752,-1754.63,0.00048767,30]
[333740443,1722433696791,-1754.63,0.00048767,30]
[333740444,1722433696831,-1754.63,0.00048767,30]
[333740445,1722433697119,-1754.63,0.00048767,30]
[333740446,1722433697162,-1754.71968191,0.00048767,30]
[333740447,1722433697202,-1569.25677654,0.00048775,120]
[333740448,1722433697241,-20000.0,0.000488,30]
[333740449,1722433697281,-832.60492449,0.000488,120]
[333740450,1722433697323,-569.6614227,0.000488,120]
[333740451,1722433697362,-414.5083681,0.000488,120]
[333740452,1722433697403,-349.03519373,0.000488,120]
[333740453,1722433697438,-10795.45227742,0.0004885,90]
[333740454,1722433697477,-213.71549204,0.000489,120]
[333740455,1722433697514,-500.0,0.00048944,120]
[333740456,1722433697551,-1000.0,0.00048999,120]
[333740457,1722433697592,-50000.0,0.00049,49]
[333740458,1722433697634,-50000.0,0.00049,39]
[333740459,1722433697674,-734.81247032,0.00049,30]
[333740460,1722433697712,-500.0,0.00049,30]
[333740461,1722433697748,-155.0,0.00049,120]
[333740462,1722433697785,-1000000.0,0.00049,120]
[333740463,1722433697820,-3000.0,0.00049,120]
[333740464,1722433697856,-598.87652701,0.00049,120]
[333740465,1722433697895,-859237.01493351,0.00049,120]
[333740480,1722433710220,-194.0,0.0003,120]
[333740481,1722433711098,-188.45509333,0.000449,120]
[333740482,1722433711144,-140762.98506649,0.00049,120]
[333740483,1722433711185,-500.0,0.00049315,120]
[333740484,1722433711225,-1713.05311964,0.000494,120]
[333740485,1722433711264,-16200.88025955,0.0004949,120]
[333740486,1722433711304,-2471.68971813,0.000495,69]
[333740487,1722433711342,-2977.17994963,0.000496,120]
[333740488,1722433711379,-451.02473326,0.00049678,120]
[333740489,1722433711418,-200.0,0.000499,120]
[333740490,1722433711456,-200.0,0.000499,120]
[333740491,1722433711495,-1262.46809278,0.00049999,90]
[333740492,1722433711533,-841.190494,0.0005,65]
[333740493,1722433711571,-150.0,0.0005,120]
[333740494,1722433711609,-1000000.0,0.0005,120]
[333740495,1722433711656,-1000000.0,0.0005,120]
[333740496,1722433711696,-1514.50762011,0.0005,60]
[333740497,1722433711735,-1102.8978662,0.0005,120]
[333740498,1722433711774,-743.98938082,0.0005,120]
[333740499,1722433711813,-1218.88902644,0.0005,120]
[333740500,1722433711851,-807.06483196,0.0005,120]
[333740501,1722433711891,-1000.0,0.0005,120]
[333740502,1722433711931,-800.0,0.0005,120]
[333740503,1722433711970,-2000.0,0.0005,120]
[333740504,1722433712012,-2000.0,0.0005,100]
[333740505,1722433712052,-2000.0,0.0005,100]
[333740506,1722433712090,-2000.0,0.0005,100]
[333740507,1722433712129,-2000.0,0.0005,100]
[333740508,1722433712169,-2000.0,0.0005,100]
[333740509,1722433712209,-2000.0,0.0005,100]
[333740510,1722433712248,-33291.88701958,0.0005,120]
[333740511,1722433712288,-200.63671742,0.0005,120]
[333740512,1722433712327,-35638.65300797,0.0005,120]
[333740513,1722433712365,-414.62112171,0.0005,120]
[333740514,1722433712407,-226.0,0.0005,120]
[333740515,1722433712447,-2000.0,0.0005,120]
[333740516,1722433712847,-158.893718,0.0005,60]
[333740517,1722433712886,-1000000.0,0.000505,120]
[333740518,1722433712922,-10795.45227742,0.0005085,90]
[333740519,1722433712960,-1000000.0,0.00051,120]
[333740520,1722433713000,-1000000.0,0.00051,120]
[333740521,1722433713041,-820.5166,0.0005147,93]
[333740522,1722433713085,-727153.06428556,0.000515,120]
[333740523,1722433720102,-150.0,0.00049148,120]
[333740524,1722433720157,-10000.0,0.000515,120]
[333740525,1722433720210,-102284.06,0.00052,60]
[333740526,1722433720250,-1367.522576,0.00052,79]
[333740527,1722433720288,-863.24788992,0.00052,120]
[333740528,1722433720324,-1093.51526292,0.00052,120]
[333740529,1722433720361,-1000.0,0.00052,120]
[333740530,1722433720398,-700.0,0.00052,120]
[333740531,1722433721347,418.0,0.00052055,60]
[333740532,1722433724090,1013.64867623,0.00051499,120]
[333740533,1722433728890,1000.0,0.00044999,120]
[333740578,1722433832033,-351.86,8.219e-05,2]
[333740579,1722433832043,-302.790542,9.041e-05,2]
[333740580,1722433832052,-200.0,9.081e-05,2]
[333740581,1722433832063,-203.05,9.087e-05,2]
[333740582,1722433832072,-250.0,9.091e-05,2]
[333740583,1722433832082,-695.75505561,9.091e-05,2]
[333740584,1722433832193,-23194.24494439,9.091e-05,2]
[333740585,1722433832202,-1000.0,9.103e-05,2]
[333740586,1722433832212,-150.0,9.104e-05,2]
[333740587,1722433832222,-6528.12,9.105e-05,2]
[333740588,1722433832231,-175.18,9.116e-05,2]
[333740589,1722433832241,-218.28,9.195e-05,2]
[333740590,1722433832252,-600.0,9.67e-05,2]
[333740591,1722433832262,-299.99,9.67e-05,2]
[333740593,1722433832271,-999.99,9.67e-05,2]
[333740595,1722433832280,-410.15,9.883e-05,2]
[333740597,1722433832290,-410.15,9.885e-05,2]
[333740599,1722433832300,-410.15,9.888e-05,2]
[333740601,1722433832310,-410.15,9.89e-05,2]
[333740603,1722433832320,-410.15,9.893e-05,2]
[333740605,1722433832330,-410.15,9.896e-05,2]
[333740607,1722433832339,-410.15,9.898e-05,2]
[333740609,1722433832349,-410.15,9.901e-05,2]
[333740611,1722433832358,-410.15,9.903e-05,2]
[333740613,1722433832367,-410.15,9.906e-05,2]
[333740616,1722433832376,-410.15,9.909e-05,2]
[333740618,1722433832385,-410.15,9.911e-05,2]
[333740620,1722433832395,-410.15,9.914e-05,2]
[333740623,1722433832405,-410.15,9.916e-05,2]
[333740624,1722433832415,-410.15,9.919e-05,2]
[333740626,1722433832425,-410.15,9.922e-05,2]
[333740628,1722433832434,-410.15,9.924e-05,2]
[333740630,1722433832443,-410.15,9.927e-05,2]
[333740632,1722433832452,-410.15,9.929e-05,2]
[333740634,1722433832462,-410.15,9.932e-05,2]
[333740636,1722433832472,-371.5992053,0.0001,2]
[333740638,1722433832482,-187.5209372,0.0001,2]
[333740640,1722433832491,-255.0,0.00010015,2]
[333740642,1722433832502,-203.05,0.00010223,2]
[333740644,1722433832512,-1000.0,0.00010241,2]
[333740646,1722433832522,-351.86,0.00010428,2]
[333740648,1722433832532,-10000.0,0.00010429,2]
[333740651,1722433832542,-182.91083003,0.000106,2]
[333740653,1722433832552,-2681.9773,0.000106,2]
[333740654,1722433832561,-363.3224,0.000106,2]
[333740656,1722433832571,-2303.8238,0.000107,2]
[333740658,1722433832580,-1000.0,0.000107,2]
[333740660,1722433832589,-59396.9454,0.000107,2]
[333740662,1722433832600,-183.424184,0.000107,2]
[333740664,1722433832610,-5136.9101,0.000107,2]
[333740666,1722433832620,-1000.84199463,0.000107,2]
[333740668,1722433832630,-177.69822982,0.000107,2]
[333740670,1722433832640,-9416.1967,0.000107,2]
[333740672,1722433832649,-2044.8298,0.000107,2]
[333740674,1722433832659,-199.25861647,0.00010799,3]
[333740676,1722433832668,-5190.37854984,0.00010799,2]
[333740678,1722433832678,-272.85,0.00010799,2]
[333740680,1722433832688,-1064.40851654,0.00010799,3]
[333740682,1722433832698,-274882.1287834,0.000108,2]
[333740686,1722433832727,-16769.40348016,0.000108,2]
[333740688,1722433832739,-689.90835619,0.000108,2]
[333740699,1722433832836,-668.54161011,0.00010797,2]
[333740728,1722433838703,-3339.42232416,0.00010797,2]
[333740729,1722433838712,-1640.4369419,0.000108,2]
[333740730,1722433838724,-1044.62063914,0.000108,2]
[333740731,1722433838736,-6520.00007089,0.000108,2]
[333740732,1722433839116,-2003.1919573,0.000108,2]
[333740733,1722433839166,-253.7732008,0.000108,2]
[333740734,1722433839178,-625.41377823,0.000108,2]
[333740735,1722433840278,-500.0,9.04e-05,2]
[333740737,1722433840440,-322.56152394,9.04e-05,2]
[333740739,1722433840463,-305.37279185,9.04e-05,2]
[333740741,1722433840572,-513.06568421,9.04e-05,2]
[333740742,1722433840581,-12855.48570796,0.000108,2]